bitfinex/quotes_ETHUSD_20230109
["timestamp","ask_amount","ask_price","bid_price","bid_amount"]
[1673283258096,3.41001594,1340.8,1340.5,23.05788547]
[1673283258427,3.34401594,1340.8,1340.6,2.30578855]
[1673283259288,10.80224594,1340.8,1340.6,2.30578855]
[1673283259553,10.86824594,1340.8,1340.6,2.30578855]
[1673283259721,1.11372999,1340.7,1340.5,8.20392547]
[1673283260293,8.57255999,1340.7,1340.5,8.20392547]
[1673283260465,8.63855999,1340.7,1340.5,8.20392547]
[1673283260902,1.17972999,1340.7,1340.5,8.20392547]
[1673283261121,1.11372999,1340.7,1340.5,8.20392547]
[1673283261332,25.78511594,1340.8,1340.6,0.82039255]
[1673283261658,1.11372999,1340.7,1340.6,0.82039255]
[1673283261830,8.57251999,1340.7,1340.6,0.82039255]
[1673283262022,1.17972999,1340.7,1340.6,0.82039255]
[1673283262231,1.11372999,1340.7,1340.6,0.82039255]
[1673283263810,8.57251999,1340.7,1340.6,0.82039255]
[1673283264020,8.57251999,1340.7,1340.5,8.20381547]
[1673283264021,1.17972999,1340.7,1340.5,8.20381547]
[1673283264263,1.11372999,1340.7,1340.5,8.20381547]
[1673283264482,1.11372999,1340.7,1340.5,15.66371547]
[1673283264649,1.11372999,1340.7,1340.5,23.12361547]
[1673283265500,2.78441594,1340.8,1340.5,23.12361547]
[1673283265751,2.78441594,1340.8,1340.6,17.23060155]
[1673283265956,2.78441594,1340.8,1340.6,24.75579155]
[1673283267384,2.78441594,1340.8,1340.6,24.75594155]
[1673283269489,2.85041594,1340.9,1340.7,3.79766064]
[1673283269693,2.78441594,1340.9,1340.8,0.37976606]
[1673283270022,1.17972999,1341.0,1340.8,4.1774267]
[1673283270130,0.06600713,1341.1,1340.9,8.64815557]
[1673283270340,7.13e-06,1341.1,1341.0,26.39902064]
[1673283270534,7.13e-06,1341.1,1341.0,39.94891002]
[1673283270790,7.13e-06,1341.1,1341.0,42.94891002]
[1673283271078,7.13e-06,1341.1,1341.0,41.09857066]
[1673283272976,7.13e-06,1341.1,1341.0,55.09857066]
[1673283273286,0.11468879,1341.2,1341.1,3.5]
[1673283273287,5.92e-06,1341.2,1341.1,3.5]
[1673283273496,5.92e-06,1341.2,1341.1,43.64497168]
[1673283273724,0.1201025,1341.5,1341.1,44.27037168]
[1673283273934,0.1201025,1341.5,1341.4,22.36467]
[1673283274146,0.1201025,1341.5,1341.4,25.43067]
[1673283274363,2.5e-06,1341.5,1341.4,29.22833064]
[1673283274550,2.5e-06,1341.5,1341.4,32.2845637]
[1673283274779,0.29410348,1341.5,1341.4,32.2845637]
[1673283275007,0.29410348,1341.5,1341.4,34.9515637]
[1673283275221,0.29410348,1341.5,1341.4,35.1815637]
[1673283276695,0.29410348,1341.5,1341.4,33.8485637]
[1673283277074,0.29410348,1341.5,1341.4,18.9387837]
[1673283277315,0.29410348,1341.5,1341.4,13.57712306]
[1673283277916,0.29410348,1341.5,1341.4,21.03201306]
[1673283278247,0.29410348,1341.5,1341.4,33.6185637]
[1673283278452,0.29410348,1341.5,1341.4,18.7087837]
[1673283278708,0.29410348,1341.5,1341.4,11.2538937]
[1673283279324,0.29410348,1341.5,1341.4,6.12223306]
[1673283279565,0.29410348,1341.5,1341.4,13.57712306]
[1673283279772,0.29410348,1341.5,1341.4,52.4628589]
[1673283279933,0.29410348,1341.5,1341.4,61.4638372]
[1673283280599,1e-08,1341.5,1341.4,62.7908372]
[1673283280804,1e-08,1341.5,1341.4,58.48022088]
[1673283281096,0.1260138,1341.6,1341.4,62.7908372]
[1673283281345,1.85351878,1342.0,1341.6,3.5]
[1673283281346,0.11468879,1342.0,1341.6,3.5]
[1673283281540,0.11468879,1342.0,1341.8,1.334]
[1673283281880,0.11468879,1342.0,1341.9,4.02766064]
[1673283282037,0.11468879,1342.0,1341.9,11.47978064]
[1673283282241,0.11468879,1342.0,1341.9,11.31578064]
[1673283282500,0.11468879,1342.0,1341.9,14.2377997]
[1673283283092,0.11468879,1342.0,1341.9,21.6899197]
[1673283283851,19.2153,1342.3,1341.9,29.1420397]
[1673283284194,0.6249,1342.3,1342.1,22.353]
[1673283284394,0.5589,1342.3,1342.1,14.968]
[1673283284991,0.726163,1342.3,1342.1,0.066]
[1673283285200,0.726163,1342.3,1341.8,10.51833]
[1673283285201,16.73967299,1342.3,1341.8,10.51833]
[1673283285429,16.80567299,1342.3,1341.8,21.76838064]
[1673283285641,0.066,1342.3,1341.9,4.35676064]
[1673283285855,0.5589,1342.4,1342.0,50.60346064]
[1673283286122,0.5589,1342.4,1342.0,29.21801064]
[1673283286409,0.6248,1342.5,1342.2,3.79766064]
[1673283286754,1.24970297,1342.6,1342.4,18.69634064]
[1673283286755,0.13597298,1342.6,1342.4,18.69634064]
[1673283286871,0.13597298,1342.6,1342.5,7.02766064]
[1673283287079,0.13597298,1342.6,1342.5,7.09366064]
[1673283287549,0.13597298,1342.6,1342.5,6.86366064]
[1673283287700,0.13597298,1342.6,1342.5,17.1835707]
[1673283287918,0.13597298,1342.6,1342.5,9.7347907]
[1673283288230,0.13597298,1342.6,1342.5,23.7347907]
[1673283288866,0.13597298,1342.6,1342.5,17.016]
[1673283289083,1.39997298,1342.6,1342.5,3.016]
[1673283289298,1.39997298,1342.6,1342.3,3.6249]
[1673283289514,1.39997298,1342.6,1342.3,7.35656064]
[1673283289739,1.39997298,1342.6,1342.3,7.42256064]
[1673283289965,0.13597298,1342.6,1342.3,11.0549047]
[1673283290124,0.13597298,1342.6,1342.3,25.9546347]
[1673283290335,0.13597298,1342.6,1342.4,17.79766064]
[1673283290703,0.13597298,1342.6,1342.5,14.24644064]
[1673283290857,1.39997298,1342.6,1342.5,3.066]
[1673283291067,16.29643298,1342.6,1342.5,3.0]
[1673283291321,10.43325653,1342.6,1342.5,3.0]
[1673283291486,10.43325653,1342.6,1342.4,14.066]
[1673283291487,17.88148653,1342.6,1342.4,14.066]
[1673283291823,17.88148653,1342.6,1342.4,0.066]
[1673283292028,17.88148653,1342.6,1342.3,3.0]
[1673283292264,10.43325653,1342.6,1342.3,6.79766064]
[1673283292438,1.46597298,1342.6,1342.3,14.31306064]
[1673283292653,0.13597298,1342.6,1342.3,14.31306064]
[1673283293046,0.13597298,1342.6,1342.4,3.79766064]
[1673283293231,0.13597298,1342.6,1342.5,11.24644064]
[1673283293537,0.13597298,1342.6,1342.5,3.86366064]
[1673283293701,0.13597298,1342.6,1342.5,3.79766064]
[1673283294904,1.39997298,1342.6,1342.4,0.066]
[1673283295133,1.39997298,1342.6,1342.3,17.96517]
[1673283295327,1.39997298,1342.6,1342.3,19.18716364]
[1673283295639,1.39997298,1342.6,1342.3,34.08671364]
[1673283295795,0.13597298,1342.6,1342.3,34.08671364]
[1673283296767,0.13597298,1342.6,1342.4,3.79766064]
[1673283296977,0.13597298,1342.6,1342.5,14.89756]
[1673283297196,0.13597298,1342.6,1342.5,7.51478]
[1673283299329,0.13597298,1342.6,1342.5,0.066]
[1673283299531,25.04266298,1342.6,1342.4,0.066]
[1673283299744,11.04398437,1342.6,1342.3,10.44962]
[1673283299905,11.04398437,1342.6,1342.3,21.76292064]
[1673283299906,10.21220298,1342.6,1342.3,21.76292064]
[1673283300114,2.76397298,1342.6,1342.3,28.31328064]
[1673283300436,0.13597298,1342.6,1342.3,43.21306064]
[1673283301898,0.13597298,1342.6,1342.4,3.79766064]
[1673283302121,0.13597298,1342.6,1342.5,22.34634]
[1673283302476,0.13597298,1342.6,1342.5,22.41234]
[1673283302854,0.13597298,1342.6,1342.5,7.51478]
[1673283303276,1.39997298,1342.6,1342.5,7.51478]
[1673283303510,2.69797298,1342.6,1342.5,0.066]
[1673283303701,2.69797298,1342.6,1342.4,7.44916]
[1673283303702,3.04118637,1342.6,1342.4,7.51531]
[1673283303905,2.69797298,1342.6,1342.4,14.96431]
[1673283304115,2.69797298,1342.6,1342.4,0.066]
[1673283304358,2.69797298,1342.6,1342.3,33.7872]
[1673283304563,2.69797298,1342.6,1342.3,16.13526064]
[1673283304564,26.36684298,1342.6,1342.3,16.13526064]
[1673283304731,26.43284298,1342.6,1342.3,16.13526064]
[1673283305203,26.43284298,1342.6,1342.3,45.03491064]
[1673283305204,11.53620298,1342.6,1342.3,45.03491064]
[1673283305586,11.53620298,1342.6,1342.3,37.58502064]
[1673283305794,18.98443298,1342.6,1342.3,37.58502064]
[1673283306105,1.33,1342.5,1342.3,0.066]
[1673283306322,23.67802,1342.4,1342.1,33.07]
[1673283306646,1.264,1342.3,1342.2,3.0]
[1673283306853,16.16378,1342.3,1342.2,3.0]
[1673283307060,16.22978,1342.3,1342.2,3.0]
[1673283307292,20.413692,1342.3,1342.1,0.066]
[1673283307526,16.23523,1342.2,1341.7,31.80887]
[1673283307682,1.4,1342.2,1341.8,3.79766064]
[1673283307885,4.809812,1342.3,1341.9,3.79766064]
[1673283308098,3.409812,1342.3,1341.9,18.70124064]
[1673283308322,3.409812,1342.3,1341.9,18.76724064]
[1673283308782,0.5589,1342.3,1341.9,26.21936064]
[1673283309501,8.0088,1342.3,1341.9,11.31526064]
[1673283309709,11.5748,1342.3,1341.9,11.31526064]
[1673283309903,11.5748,1342.3,1341.9,18.76738064]
[1673283311092,1.334,1342.2,1341.9,0.066]
[1673283311252,26.46683,1342.2,1341.9,3.0]
[1673283311614,26.53283,1342.2,1341.9,3.0]
[1673283311858,26.53283,1342.2,1341.8,3.066]
[1673283311991,26.53283,1342.2,1341.8,6.79766064]
[1673283312197,26.53283,1342.2,1341.8,6.86366064]
[1673283312488,26.53283,1342.2,1341.8,14.31628064]
[1673283312658,2.653283,1342.1,1341.8,6.86366064]
[1673283312844,17.555593,1342.1,1341.8,6.86366064]
[1673283313074,29.894893,1342.1,1341.8,6.86366064]
[1673283313382,29.894893,1342.1,1341.8,3.066]
[1673283313562,29.894893,1342.1,1341.8,3.0]
[1673283313772,26.394893,1342.1,1341.8,3.0]
[1673283314114,2.6394893,1342.0,1341.8,3.0]
[1673283314344,18.943593,1342.1,1341.8,3.0]
[1673283314520,12.051293,1342.1,1341.8,17.90524]
[1673283314734,12.051293,1342.1,1341.8,17.97124]
[1673283314942,0.066,1342.1,1341.9,3.79766064]
[1673283315276,19.7907,1342.3,1342.0,26.15234064]
[1673283315499,0.066,1342.3,1342.0,18.76678064]
[1673283315821,1.11372999,1342.3,1342.0,18.76678064]
[1673283315982,21.80830594,1342.4,1342.0,18.76678064]
[1673283316188,27.52849914,1342.4,1342.0,18.76678064]
[1673283316432,24.02849914,1342.4,1342.0,11.31522064]
[1673283316653,24.02849914,1342.4,1342.0,18.76678064]
[1673283316879,24.02849914,1342.4,1342.0,11.31522064]
[1673283317295,24.02849914,1342.4,1342.0,18.76678064]
[1673283317465,1.11372999,1342.3,1342.0,22.3159427]
[1673283319190,1.11372999,1342.3,1342.0,29.7675027]
[1673283319583,1.67262999,1342.4,1342.0,43.7675027]
[1673283319784,3.34331594,1342.4,1342.0,43.7675027]
[1673283320129,1.11372999,1342.3,1342.1,26.09922806]
[1673283320304,1.11372999,1342.3,1342.1,26.16522806]
[1673283321070,1.11372999,1342.3,1342.1,22.41839]
[1673283321071,2.78441594,1342.3,1342.1,22.41839]
[1673283321807,1.11372999,1342.2,1342.1,22.41839]
[1673283322120,1.11372999,1342.2,1342.1,14.96739]
[1673283322282,1.11372999,1342.2,1342.1,7.51655]
[1673283322491,1.11372999,1342.2,1342.1,0.066]
[1673283322760,1.11372999,1342.2,1342.0,32.76630064]
[1673283323373,2.78441594,1342.2,1342.0,25.31494064]
[1673283323554,1.11372999,1342.1,1342.0,32.76650064]
[1673283323758,1.11372999,1342.1,1342.0,40.21806064]
[1673283324007,1.67068595,1342.2,1342.0,48.9123457]
[1673283324008,2.78441594,1342.2,1342.0,48.9123457]
[1673283324204,1.11372999,1342.2,1342.0,48.9123457]
[1673283325441,2.78441594,1342.2,1342.0,48.9123457]
[1673283326069,1.11372999,1342.1,1342.0,48.9123457]
[1673283326292,1.11372999,1342.1,1342.0,43.21806064]
[1673283326735,1.11372999,1342.1,1342.0,35.76650064]
[1673283326911,1.11372999,1342.1,1342.0,28.31494064]
[1673283327268,1.11372999,1342.1,1342.0,43.21806064]
[1673283327498,1.11372999,1342.1,1342.0,35.76650064]
[1673283328312,1.11372999,1342.1,1342.0,43.21806064]
[1673283328658,1.11372999,1342.1,1342.0,35.76650064]
[1673283329113,1.11372999,1342.1,1342.0,21.76650064]
[1673283329324,27.36487591,1342.1,1342.0,0.066]
[1673283329562,26.82493351,1342.1,1341.9,9.3392]
[1673283329792,1.1142754,1342.0,1341.9,9.3392]
[1673283330004,1.1142754,1342.0,1341.9,3.066]
[1673283330162,2.78496135,1342.0,1341.9,2.99762908]
[1673283330484,17.68808135,1342.0,1341.9,2.99762908]
[1673283330730,17.75408135,1342.0,1341.9,2.99762908]
[1673283330945,16.63980595,1342.0,1341.8,14.07336142]
[1673283331153,1.11419033,1341.9,1341.8,17.87102206]
[1673283331414,8.56631033,1341.9,1341.8,17.87102206]
[1673283331606,8.63231033,1341.9,1341.8,17.87102206]
[1673283331795,8.63231033,1341.9,1341.8,17.86366064]
[1673283332238,8.63231033,1341.9,1341.8,20.86366064]
[1673283332876,1.49543145,1341.9,1341.8,20.86366064]
[1673283333041,1.42943145,1341.9,1341.8,3.066]
[1673283333256,19.28887114,1341.9,1341.7,0.066]
[1673283333487,19.28887114,1341.9,1341.6,0.066]
[1673283333488,1.11419033,1341.8,1341.6,0.066]
[1673283333679,19.01429628,1341.8,1341.5,14.0]
[1673283333900,11.62754628,1341.8,1341.5,14.066]
[1673283334108,15.292453,1341.8,1341.5,14.066]
[1673283334518,7.839783,1341.8,1341.5,21.52026]
[1673283335478,15.292453,1341.8,1341.5,21.52026]
[1673283335689,22.745123,1341.8,1341.5,14.066]
[1673283335945,22.745123,1341.8,1341.5,21.52023]
[1673283335946,15.292453,1341.8,1341.5,21.52023]
[1673283336331,7.839783,1341.8,1341.5,28.97457]
[1673283336667,6.16909705,1341.8,1341.5,36.42891]
[1673283337573,15.292493,1341.8,1341.5,36.42891]
[1673283337796,21.07451705,1341.8,1341.5,28.97457]
[1673283338037,22.745203,1341.8,1341.5,28.97257]
[1673283338259,15.292493,1341.8,1341.5,28.97457]
[1673283338725,15.292453,1341.8,1341.5,28.97457]
[1673283339346,7.839783,1341.8,1341.5,36.42891]
[1673283339874,5.05490672,1341.8,1341.5,36.42891]
[1673283340130,2.50419033,1341.8,1341.5,36.42891]
[1673283340417,2.43819033,1341.8,1341.5,36.42891]
[1673283340621,9.89091033,1341.8,1341.5,14.97457]
[1673283340850,9.89091033,1341.8,1341.5,0.066]
[1673283340851,1.327,1341.6,1341.5,0.066]
[1673283341059,1.327,1341.6,1341.4,0.066]
[1673283341060,24.80253033,1341.6,1341.4,0.066]
[1673283341243,14.90978,1341.4,1341.3,0.06795637]
[1673283341447,1.393,1341.4,1341.3,0.06795637]
[1673283341686,2.562,1341.4,1341.3,0.06795637]
[1673283341900,10.01689,1341.4,1341.3,0.06795637]
[1673283342096,10.08289,1341.4,1341.3,0.06795637]
[1673283342543,17.53778,1341.4,1341.3,0.06795637]
[1673283342761,20.929117,1341.4,1341.3,0.06795637]
[1673283343130,6.019337,1341.4,1341.3,0.06795637]
[1673283343378,2.628,1341.4,1341.3,0.06795637]
[1673283343603,2.562,1341.4,1341.3,0.06795637]
[1673283343778,0.1987,1341.5,1341.3,0.06795637]
[1673283343972,0.1327,1341.5,1341.3,22.43430637]
[1673283344182,1.322,1341.6,1341.3,22.50030637]
[1673283344499,9.70759033,1341.7,1341.3,22.50030637]
[1673283344915,8.5934,1341.7,1341.3,26.29796701]
[1673283345126,8.5934,1341.7,1341.3,22.50030637]
[1673283345393,0.6252,1341.7,1341.5,22.36302]
[1673283345602,0.5592,1341.7,1341.5,22.42902]
[1673283345965,20.67759033,1341.8,1341.5,22.42902]
[1673283346284,20.67759033,1341.8,1341.5,14.97468]
[1673283346537,19.5634,1341.8,1341.5,7.52034]
[1673283346715,0.6251,1341.8,1341.5,7.52034]
[1673283346924,0.6251,1341.8,1341.5,14.97468]
[1673283346925,1.67329033,1341.8,1341.5,14.97468]
[1673283347130,1.66931778,1341.8,1341.5,14.97468]
[1673283347346,1.66931778,1341.8,1341.5,10.49301706]
[1673283347347,0.55512745,1341.8,1341.5,10.49301706]
[1673283347919,1.66931778,1341.8,1341.5,10.49301706]
[1673283348130,9.12217778,1341.8,1341.5,17.94735706]
[1673283348280,9.18817778,1341.8,1341.5,17.94735706]
[1673283348496,1.73531778,1341.8,1341.5,17.94735706]
[1673283348700,1.66931778,1341.8,1341.5,17.94735706]
[1673283348965,1.66931778,1341.8,1341.5,0.066]
[1673283348966,24.02757778,1341.8,1341.5,0.066]
[1673283349290,25.76426373,1341.8,1341.4,7.52077]
[1673283349460,24.09357778,1341.8,1341.4,14.97546]
[1673283349671,25.76426373,1341.8,1341.4,14.97546]
[1673283349870,27.09826373,1341.8,1341.4,10.42513164]
[1673283350080,25.42757778,1341.8,1341.4,17.88002164]
[1673283350285,27.09826373,1341.8,1341.4,17.88002164]
[1673283350540,25.42757778,1341.8,1341.4,17.88002164]
[1673283350960,25.42757778,1341.8,1341.4,25.33491164]
[1673283351293,25.42757778,1341.8,1341.5,9.98779116]
[1673283351455,25.42757778,1341.8,1341.5,10.05379116]
[1673283351661,19.64534373,1341.8,1341.5,10.05379116]
[1673283352108,25.42757778,1341.8,1341.5,10.05379116]
[1673283352313,27.09826373,1341.8,1341.5,2.59949116]
[1673283352530,27.09826373,1341.8,1341.4,25.27607526]
[1673283352531,27.09826373,1341.8,1341.4,25.49866726]
[1673283352854,27.09826373,1341.8,1341.4,18.04377726]
[1673283354013,1.11419033,1341.7,1341.4,3.13429726]
[1673283354226,1.11419033,1341.7,1341.4,0.16395562]
[1673283354227,22.36134,1341.6,1341.4,0.16395562]
[1673283354539,22.42734,1341.6,1341.4,0.156592]
[1673283354852,23.75134,1341.6,1341.4,3.156592]
[1673283355009,26.98324303,1341.6,1341.4,3.156592]
[1673283355215,26.98324303,1341.6,1341.4,0.156592]
[1673283355463,30.48324303,1341.6,1341.4,0.156592]
[1673283356941,26.98324303,1341.6,1341.4,0.156592]
[1673283357694,19.52946303,1341.6,1341.4,0.156592]
[1673283358029,26.98324303,1341.6,1341.4,0.156592]
[1673283359638,22.42734,1341.6,1341.4,0.156592]
[1673283359992,23.54153033,1341.6,1341.4,0.156592]
[1673283360162,0.066,1341.6,1341.4,15.066372]
[1673283360373,11.56513628,1341.7,1341.4,7.677482]
[1673283360580,19.08465628,1341.7,1341.4,7.677482]
[1673283360786,19.08465628,1341.7,1341.4,0.222592]
[1673283360787,16.02193033,1341.6,1341.4,0.222592]
[1673283361039,23.54180033,1341.6,1341.4,0.156592]
[1673283361495,27.04180033,1341.6,1341.4,0.156592]
[1673283361681,30.04648628,1341.6,1341.4,0.156592]
[1673283362615,26.54648628,1341.6,1341.4,0.156592]
[1673283362827,1.11419033,1341.5,1341.4,0.156592]
[1673283363013,23.47721033,1341.5,1341.4,0.156592]
[1673283363226,23.54321033,1341.5,1341.4,0.156592]
[1673283363426,28.36621033,1341.5,1341.4,0.156592]
[1673283363634,30.03689628,1341.5,1341.4,0.156592]
[1673283363844,32.94858912,1341.5,1341.4,0.156592]
[1673283364088,34.61927507,1341.5,1341.4,0.156592]
[1673283364306,34.83908474,1341.5,1341.4,0.156592]
[1673283364511,40.86420535,1341.5,1341.4,0.156592]
[1673283364680,38.63674538,1341.5,1341.4,0.156592]
[1673283365119,39.1935194,1341.5,1341.4,0.156592]
[1673283365327,47.60152974,1341.5,1341.4,2e-06]
[1673283365559,48.16264456,1341.5,1341.4,2e-06]
[1673283365797,45.93336977,1341.5,1341.4,2e-06]
[1673283365999,1.73820709,1341.5,1341.4,2e-06]
[1673283366210,0.066,1341.6,1341.4,2e-06]
[1673283366372,1.11484829,1341.7,1341.4,7.454892]
[1673283366574,1.11484829,1341.6,1341.4,7.520892]
[1673283367307,1.11484829,1341.6,1341.4,0.066002]
[1673283367568,1.11484829,1341.6,1341.4,2e-06]
[1673283367569,3.28873383,1341.6,1341.4,2e-06]
[1673283367746,4.12105538,1341.5,1341.4,2e-06]
[1673283367946,5.44402915,1341.5,1341.4,2e-06]
[1673283368152,24.77380207,1341.5,1341.4,2e-06]
[1673283368418,25.33591201,1341.5,1341.4,2e-06]
[1673283368728,28.23753079,1341.5,1341.4,2e-06]
[1673283369326,25.44917769,1341.5,1341.4,2e-06]
[1673283369883,28.79844906,1341.5,1341.4,2e-06]
[1673283370098,45.98164692,1341.5,1341.3,0.06595837]
[1673283370251,30.64231582,1341.4,1341.3,0.06595837]
[1673283370473,3.5,1341.3,1341.2,0.06795637]
[1673283370673,30.44245644,1341.3,1341.2,5.637e-05]
[1673283370912,30.50845644,1341.3,1341.2,5.637e-05]
[1673283371671,30.50845644,1341.3,1340.8,0.07735029]
[1673283371672,22.37001,1341.1,1340.8,0.07735029]
[1673283371883,8.79167,1340.9,1340.8,0.07735029]
[1673283372039,8.85767,1340.9,1340.8,0.07735029]
[1673283374298,1.4,1340.9,1340.8,0.07735029]
[1673283374508,0.6255,1341.0,1340.8,14.99381029]
[1673283374667,0.5595,1341.0,1340.8,22.51804029]
[1673283375033,0.5595,1341.0,1340.8,7.60158029]
[1673283375419,0.5595,1341.0,1340.8,0.14335029]
[1673283375614,43.56502,1341.1,1340.8,0.07735029]
[1673283375823,48.98088436,1341.1,1340.8,0.07735029]
[1673283376079,34.06724436,1341.1,1340.8,0.07735029]
[1673283376293,34.06722436,1341.1,1340.8,0.07735029]
[1673283376825,41.52378436,1341.1,1340.8,0.07735029]
[1673283377026,34.06722436,1341.1,1340.8,7.53557029]
[1673283377345,2.1271728,1341.0,1340.8,7.60157029]
[1673283377518,2.1271728,1341.0,1340.8,7.60155029]
[1673283378156,9.40496,1341.1,1340.8,7.60155029]
[1673283378371,16.86171,1341.1,1340.8,0.14335029]
[1673283378584,9.40496,1341.1,1340.8,7.53552029]
[1673283378774,9.40496,1341.1,1340.8,7.60152029]
[1673283380052,0.6254,1341.1,1340.8,7.60152029]
[1673283380266,0.5594,1341.2,1340.9,4.26015203]
[1673283380473,0.5594,1341.2,1341.0,14.91424]
[1673283380681,0.5594,1341.2,1341.0,22.43736]
[1673283380894,1.8833,1341.3,1341.0,22.43736]
[1673283381102,16.79466,1341.3,1341.0,7.52312]
[1673283381446,16.79466,1341.3,1341.0,2.7358022]
[1673283381447,0.6253,1341.3,1341.0,2.7358022]
[1673283381609,0.6253,1341.4,1341.1,14.91312]
[1673283381964,2.44402357,1341.5,1341.1,14.97912]
[1673283381965,1.67332357,1341.5,1341.1,14.97912]
[1673283382178,2.44802357,1341.5,1341.1,0.066]
[1673283382386,2.44802357,1341.5,1341.0,3.5]
[1673283382387,0.5593,1341.4,1341.0,3.5]
[1673283382604,0.5593,1341.4,1340.9,12.7837]
[1673283382605,14.91146,1341.3,1340.9,9.2837]
[1673283382804,10.43781542,1341.3,1340.9,9.2837]
[1673283383446,17.89354542,1341.3,1340.9,9.2837]
[1673283383609,17.89354542,1341.3,1340.9,9.29106636]
[1673283383860,0.066,1341.3,1340.9,31.66400636]
[1673283384067,10.1505,1341.4,1340.9,35.461667]
[1673283384068,10.2165,1341.4,1340.9,35.461667]
[1673283384262,9.6572,1341.4,1341.1,22.36935]
[1673283384438,0.066,1341.4,1341.1,22.44293526]
[1673283384649,1.8933,1341.5,1341.1,22.44293526]
[1673283384915,17.91618357,1341.5,1341.1,17.58066879]
[1673283385121,17.98218357,1341.5,1341.1,10.12410879]
[1673283385430,25.43661357,1341.5,1341.1,0.07336526]
[1673283385595,25.43661357,1341.5,1341.1,0.00736526]
[1673283385812,3.5,1341.4,1341.1,0.00736526]
[1673283386055,7.45496,1341.4,1341.1,7.46390526]
[1673283386262,7.52096,1341.4,1341.1,7.52990526]
[1673283386439,0.066,1341.4,1341.1,9.77429279]
[1673283386660,24.10286357,1341.5,1341.1,9.77429279]
[1673283386872,24.10286357,1341.5,1341.1,17.23085279]
[1673283387798,25.77389892,1341.5,1341.1,17.23085279]
[1673283388174,25.77389892,1341.5,1341.1,9.77429279]
[1673283388175,1.11402357,1341.4,1341.1,9.77429279]
[1673283388377,16.02430357,1341.4,1341.1,9.77429279]
[1673283388542,8.63502357,1341.4,1341.1,17.23085279]
[1673283389489,1.18002357,1341.4,1341.1,24.68741279]
[1673283389702,32.38166553,1341.5,1341.1,24.68741279]
[1673283389911,1.11402357,1341.4,1341.1,17.23085279]
[1673283390251,7.45509,1341.4,1341.1,17.23085279]
[1673283390487,7.52109,1341.4,1341.1,17.23085279]
[1673283391064,14.97618,1341.4,1341.1,17.23085279]
[1673283391809,0.066,1341.4,1341.1,24.68741279]
[1673283392059,24.10330357,1341.5,1341.1,24.68741279]
[1673283392223,16.64850357,1341.5,1341.1,24.68741279]
[1673283392423,24.10261357,1341.5,1341.1,34.10261279]
[1673283393295,24.10261357,1341.5,1341.1,26.64605279]
[1673283393685,25.77364892,1341.5,1341.1,26.64605279]
[1673283393895,25.77364892,1341.5,1341.1,34.10261279]
[1673283394154,31.12512156,1341.5,1341.1,26.64605279]
[1673283394322,31.12512156,1341.5,1341.1,31.85822526]
[1673283394533,1.11402357,1341.4,1341.1,31.85822526]
[1673283394797,8.56910357,1341.4,1341.1,24.40166526]
[1673283394947,8.63496357,1341.4,1341.1,24.40166526]
[1673283395159,16.08990357,1341.4,1341.1,16.94510526]
[1673283395529,28.55128879,1341.4,1341.1,9.4812]
[1673283395840,29.88128879,1341.4,1341.1,9.4812]
[1673283396045,4.61402357,1341.3,1341.1,9.4812]
[1673283396236,22.368,1341.2,1341.1,9.48001001]
[1673283396473,22.434,1341.2,1341.1,0.06481001]
[1673283396804,25.88435236,1341.2,1341.0,3.0]
[1673283396956,25.88435236,1341.2,1340.9,3.06481001]
[1673283397149,25.88435236,1341.2,1340.9,3.0]
[1673283397830,19.54237593,1341.2,1340.9,3.0]
[1673283398205,25.88435236,1341.2,1340.9,3.0]
[1673283398443,25.66702264,1341.2,1340.9,3.0]
[1673283398643,18.21102264,1341.2,1340.9,3.0]
[1673283398877,1.82110226,1341.1,1340.9,3.0]
[1673283399047,20.23462226,1341.1,1340.8,55.6965603]
[1673283399252,27.75738226,1341.1,1340.8,16.1796603]
[1673283399683,24.25738226,1341.1,1340.8,16.1796603]
[1673283399906,24.25738226,1341.1,1340.8,31.0960103]
[1673283399907,9.34386226,1341.1,1340.8,31.0960103]
[1673283400100,0.066,1341.1,1340.8,38.5542403]
[1673283400303,7.45659,1341.1,1340.8,38.5542403]
[1673283400542,7.52259,1341.1,1340.8,16.1796603]
[1673283400746,22.43577,1341.1,1340.8,16.1796603]
[1673283401196,25.93577,1341.1,1340.8,23.6378103]
[1673283401414,29.70965162,1341.1,1340.8,23.6378103]
[1673283401902,14.79647162,1341.1,1340.8,31.0960403]
[1673283402109,22.25306162,1341.1,1340.8,31.0960403]
[1673283402320,22.25306162,1341.1,1340.8,23.6378103]
[1673283402321,23.36708519,1341.1,1340.8,23.6378103]
[1673283402828,19.86708519,1341.1,1340.8,31.0960803]
[1673283403077,0.066,1341.1,1340.9,3.0]
[1673283403250,1.11402357,1341.2,1341.0,22.37136]
[1673283403494,1.11402357,1341.2,1341.0,22.43617001]
[1673283403711,1.11402357,1341.2,1341.0,7.52193001]
[1673283403928,1.11402357,1341.2,1341.0,14.97905001]
[1673283404095,29.47051892,1341.3,1341.0,14.97905001]
[1673283404316,22.01505892,1341.3,1341.0,14.97905001]
[1673283404520,2.85105892,1341.3,1341.0,22.43617001]
[1673283404734,2.78505892,1341.3,1341.0,26.62331901]
[1673283405249,17.69620892,1341.3,1341.0,11.70907901]
[1673283405457,17.76220892,1341.3,1341.0,11.70907901]
[1673283405732,10.30650892,1341.3,1341.0,11.70907901]
[1673283405919,10.30650892,1341.3,1341.0,19.16619901]
[1673283405920,1.11402357,1341.2,1341.0,19.16619901]
[1673283406131,1.11402357,1341.2,1341.0,4.25195901]
[1673283406336,16.02660357,1341.2,1341.0,4.187149]
[1673283406508,17.76363892,1341.2,1340.9,12.04261001]
[1673283406768,10.30720892,1341.2,1340.9,26.95786001]
[1673283406932,17.76320892,1341.2,1340.9,19.50026001]
[1673283407190,10.30705892,1341.2,1340.9,26.95793001]
[1673283407342,2.85105892,1341.2,1340.9,34.41560001]
[1673283407557,10.24121892,1341.2,1340.9,26.95793001]
[1673283407808,2.85105892,1341.2,1340.9,34.41560001]
[1673283408015,2.78505892,1341.2,1340.9,34.41560001]
[1673283410596,1.11402357,1341.1,1340.9,26.95793001]
[1673283411180,1.11402357,1341.1,1340.9,17.98013001]
[1673283411339,1.11402357,1341.1,1340.9,25.43780001]
[1673283411756,2.78505892,1341.2,1340.9,25.43780001]
[1673283412324,1.11402357,1341.1,1340.9,25.43780001]
[1673283413552,2.78505892,1341.2,1340.9,28.21362709]
[1673283413994,2.78505892,1341.2,1340.9,25.43780001]
[1673283414213,1.11402357,1341.1,1340.9,28.21365201]